Cogmind - Beta 14 @@@ ROGUE MODE // 2025.03.05 @ 05:52:29 Player: Willow Result: Destroyed by D-53 Grenadier with Mini Grenade Launcher Performance ------------- Evolutions (0) 0 Regions Visited (4) 800 Robots Destroyed (45) 225 Value Destroyed (893) 893 Prototype IDs (37) 740 Alien Tech Used (0) 0 Bonus (237) 237 TOTAL SCORE: 2895 Bonus ------- Aligned with FarCom 300 Friendly Fire -63 Cogmind --------- Core Integrity 0/250 Matter 300/300 Energy 100/100 System Corruption 0% Temperature Cool (0) Movement Treading (160) Location -9/Mines Parts ------- > --- POWER (1) -------- (None) > --- PROPULSION (2) --- Light Treads Light Treads > --- UTILITY (2) ------ Improved Heat Sink Medium Storage Unit > --- WEAPON (2) ------- Advanced Assault Cannon Ripper > --- INVENTORY (10) --- Humpback Core Analyzer Medium Armor Plating Medium Armor Plating Medium Armor Plating Medium Armor Plating Hacking Suite Recalibrator Guided Plasma Cannon Peak State ------------ > --- POWER ------------ Ion Engine > --- PROPULSION ------- Light Treads Light Treads > --- UTILITY ---------- Improved Heat Sink Medium Storage Unit > --- WEAPON ----------- Guided Plasma Cannon Datajack > --- INVENTORY -------- Light Treads Humpback Seismic Detector Medium Armor Plating Medium Armor Plating Medium Armor Plating Medium Armor Plating Hacking Suite Medium Laser [Rating: 17] Favorites ----------- Power Ion Engine Engine Ion Engine Propulsion Light Treads Treads Light Treads Flight Unit Flight Unit Utility Improved Heat Sink Device Improved Heat Sink Storage Medium Storage Unit Processor Signal Interpreter Weapon Medium Laser Energy Gun Medium Laser Energy Cannon Guided Plasma Cannon Ballistic Cannon Advanced Assault Cannon Launcher Rocket Launcher Special Weapon Plasma Cutter Slashing Weapon Ripper Special Melee Weapon Datajack Build | -11 -10 -10 -10 -9 ------- Run | Yrd Mat Min Exi Min Slots Evolved . | . . . . . Power . | . . . . . Propulsion . | . . . . . Utility . | . . . . . Weapon . | . . . . . Parts Attached 33 | 7 12 2 4 8 Power 2 | 1 1 . . . Engine 2 | 1 1 . . . Core . | . . . . . Reactor . | . . . . . Propulsion 6 | 2 1 . . 3 Treads 5 | 2 1 . . 2 Leg . | . . . . . Wheel . | . . . . . Hover . | . . . . . Flight 1 | . . . . 1 Utility 11 | 2 8 1 . . Device 8 | 1 6 1 . . Storage 2 | 1 1 . . . Processor 1 | . 1 . . . Hackware . | . . . . . Protection . | . . . . . Artifact . | . . . . . Weapon 14 | 2 2 1 4 5 Energy Gun 5 | 2 2 . 1 . Energy Cannon 2 | . . . 1 1 Ballistic Gun . | . . . . . Ballistic Cannon 1 | . . . . 1 Launcher 3 | . . 1 1 1 Special Weapon 1 | . . . . 1 Impact Weapon . | . . . . . Slashing Weapon 1 | . . . . 1 Piercing Weapon . | . . . . . Special Melee Weapon 1 | . . . 1 . Unidentified Prototypes . | . . . . . Parts Lost 6 | . 1 1 . 4 Power 2 | . 1 . . 1 Propulsion 2 | . . . . 2 Utility . | . . . . . Weapon 2 | . . 1 . 1 Highest Loss Streak 3 | . 1 1 . 3 To Critical Strikes . | . . . . . Average Slot Usage (%) 98 | . 99 95 99 96 Engine 14 | . 14 14 14 14 Treads 27 | . 27 28 28 25 Device 13 | . 13 14 14 14 Storage 14 | . 14 14 14 14 Energy Gun 18 | . 28 23 4 . Launcher 3 | . . . 13 8 Slashing Weapon 1 | . . . . 10 Special Melee Weapon 1 | . . . 9 . Peak Build Rating 17 | 7 10 11 17 17 Average Rating 10 | 5 8 9 11 14 On Entrance 7 | . 7 8 11 12 Naked Turns . | . . . . . Heaviest Build 25 | 12 20 22 22 25 Greatest Support 40 | 40 40 40 40 40 Greatest Overweight (x) . | . . . . . Average Overweight (x) . | . . . . . Largest Inventory Capacity 10 | 8 10 10 10 10 Average Capacity 9 | 7 8 10 10 10 Most Carried 10 | 1 10 10 10 10 Average Carried 8 | . 7 9 9 9 Final Capacity 10 | 8 10 10 10 10 Final Carried 10 | 1 10 9 10 10 Class Distribution -------------------- 100% | Mutant Dominant Class ---------------- Mutant | -10/Materials Mutant | -10/Mines Mutant | -10/Exiles Mutant | -9/Mines Resources | -11 -10 -10 -10 -9 ----------- Run | Yrd Mat Min Exi Min Matter Collected 680 | 270 250 17 . 143 Remotely . | . . . . . Salvage Created 1390 | 127 959 118 . 186 Parts 70 | 10 38 9 . 13 Haulers Intercepted 2 | . 2 . . . Recyclers Shooed 1 | . 1 . . . Parts Field Recycled . | . . . . . Retrieved Matter . | . . . . . Parts Self-Destructed . | . . . . . Prevented . | . . . . . Kills | -11 -10 -10 -10 -9 ------- Run | Yrd Mat Min Exi Min Combat Hostiles Destroyed 29 | . 16 8 . 5 Melee 1 | . . . . 1 Guns 24 | . 16 8 . . Cannons 1 | . . . . 1 AOE 3 | . . . . 3 Classes Destroyed 9 | 2 5 1 . 1 Worker 2 | . 2 . . . Tunneler 6 | 3 . . . 3 Hauler 2 | . 2 . . . Recycler 3 | 1 1 . . 1 Operator 2 | . 2 . . . Watcher 1 | . 1 . . . Swarmer 12 | . . 8 . 4 Grunt 16 | . 16 . . . Demolisher 1 | . . . . 1 Best Kill Streak 4 | 3 4 3 . 3 Combat Bots Only 4 | . 4 3 . 3 Max Kills in Single Turn 2 | 1 1 2 . 2 Gunslinging 1 | . . 1 . . Exploded 2 | . . . . 2 Melee 1 | . . . . 1 Uniques/NPCs Destroyed . | . . . . . Combat | -11 -10 -10 -10 -9 -------- Run | Yrd Mat Min Exi Min Hostile Shots Fired 133 | . 82 34 . 17 Missed 37 | . 27 8 . 2 Damage Taken 1253 | . 660 212 . 381 Core 250 | . 158 23 . 69 Absorbed by Shields . | . . . . . Regen/Repaired (Parts) 89 | . 89 . . . Core Remaining (%) 100 | 100 . . . . Volleys Fired 106 | 9 81 13 . 3 Largest 2 | 2 2 2 . 1 Hottest 100 | 90 100 100 . 48 Shots Fired 206 | 17 162 24 . 3 Gun 203 | 17 162 24 . . Cannon 1 | . . . . 1 Launcher 2 | . . . . 2 Special . | . . . . . Kinetic 1 | . . . . 1 Thermal 203 | 17 162 24 . . Explosive 2 | . . . . 2 Electromagnetic . | . . . . . Robot Hit Streak 15 | 4 15 5 . 8 Robot Miss Streak 4 | 4 3 3 . . Penetration Max . | . . . . . Secondary Targets 5 | . 3 2 . . Max Gunslinging Chain 1 | . 1 1 . . Shots Hit Robots 157 | 8 118 14 8 9 Core Hits 70 | 5 49 8 . 8 Critical Kills . | . . . . . Critical Parts Destroyed . | . . . . . Critical Strikes 7 | 1 5 1 . . Burn 7 | 1 5 1 . . Melee Attacks 14 | . . . 8 6 Impact . | . . . . . Slashing 6 | . . . . 6 Piercing . | . . . . . Sneak Attacks 12 | . . . 8 4 Combat Hostiles . | . . . . . Follow-up Attacks . | . . . . . Damage Inflicted 2623 | 97 1559 205 . 762 Guns 1854 | 97 1552 205 . . Cannons 30 | . . . . 30 Explosions 330 | . . . . 330 Melee 402 | . . . . 402 Ramming 7 | . 7 . . . Kinetic 30 | . . . . 30 Thermal 1854 | 97 1552 205 . . Explosive 330 | . . . . 330 Electromagnetic . | . . . . . Impact . | . . . . . Slashing 402 | . . . . 402 Piercing . | . . . . . Highest Corruption . | . . . . . Average Corruption . | . . . . . Corruption Purged . | . . . . . Corruption Blocked . | . . . . . Overload Shots . | . . . . . Overflow Damage 83 | . . . . 83 Projectiles . | . . . . . Explosions 20 | . . . . 20 Melee 63 | . . . . 63 Knockbacks . | . . . . . Impact . | . . . . . Kinetic . | . . . . . Secondary . | . . . . . Self-Inflicted Damage 67 | . . . . 67 Shots 2 | . . . . 2 Rammed 3 | . 3 . . . Targets Rammed 4 | . 4 . . . Kicked . | . . . . . Crushed 1 | . 1 . . . Highest Temperature 177 | 160 177 78 . . Average Temperature 45 | 70 42 40 . . Received Heat Transfer 360 | . 360 . . . Siege Activations . | . . . . . Robots Corrupted . | . . . . . Combat Hostiles . | . . . . . Parts Fried . | . . . . . Impact Corruptions . | . . . . . Robots Melted . | . . . . . Combat Hostiles . | . . . . . Parts Melted 17 | . 14 3 . . Heat Transferred 5583 | 346 4608 629 . . Parts Sabotaged . | . . . . . Parts Stolen . | . . . . . Parts Stripped . | . . . . . Power Chain Reactions . | . . . . . Alert | -11 -10 -10 -10 -9 ------- Run | Yrd Mat Min Exi Min Peak Influence 186 | 20 184 186 . 92 Initial 66 | . 13 66 . . Average 80 | 9 86 94 . 62 Maximum Alert Level . | . . . . . Low Security (%) 100 | 100 100 100 . 100 Level 1 . | . . . . . Level 2 . | . . . . . Level 3 . | . . . . . Level 4 . | . . . . . Level 5 . | . . . . . High Security . | . . . . . Max Security . | . . . . . Squads Dispatched 6 | . 5 . . 1 Investigation 4 | . 3 . . 1 Extermination . | . . . . . Reinforcement 2 | . 2 . . . Assault . | . . . . . Garrison . | . . . . . Intercept . | . . . . . Searches Triggered . | . . . . . Construction Impeded . | . . . . . Haulers Reinforced . | . . . . . Active Scanning Responses . | . . . . . Cargo Convoy Interrupts . | . . . . . Stealth | -11 -10 -10 -10 -9 --------- Run | Yrd Mat Min Exi Min Distress Signals 2 | . 2 . . . Communications Jammed . | . . . . . Distress Signals . | . . . . . Times Spotted 41 | . 24 10 . 7 Peak Tracking Total 5 | . 5 3 . 3 Tactical Retreats 2 | . 1 1 . . Traps | -11 -10 -10 -10 -9 ------- Run | Yrd Mat Min Exi Min Traps Triggered 1 | . 1 . . . Indirectly . | . . . . . Trap Hack Attempts . | . . . . . Triggered . | . . . . . Disarmed . | . . . . . Reprogrammed . | . . . . . Reused . | . . . . . Traps Extracted . | . . . . . Installed . | . . . . . Triggered . | . . . . . Machines | -11 -10 -10 -10 -9 ---------- Run | Yrd Mat Min Exi Min Machines Disabled 1 | . . . . 1 Max in Single Turn 1 | . . . . 1 Machines Repaired . | . . . . . Machines Dismantled . | . . . . . Machines Sabotaged . | . . . . . Overloaded Fab Kills . | . . . . . Hacking | -11 -10 -10 -10 -9 --------- Run | Yrd Mat Min Exi Min Machines Accessed 11 | . 8 . 2 1 Terminals 5 | . 5 . . . Fabricators . | . . . . . Repair Stations 1 | . 1 . . . Recycling Units 2 | . 2 . . . Scanalyzers . | . . . . . Garrison Access . | . . . . . Total Hacks 25 | . 22 . 2 1 Successful 16 | . 13 . 2 1 Failed 9 | . 9 . . . Catastrophic 1 | . 1 . . . Database Lockouts . | . . . . . Manual 21 | . 20 . 1 . Terminals 18 | . 18 . . . Fabricators . | . . . . . Repair Stations 2 | . 2 . . . Recycling Units 2 | . 2 . . . Scanalyzers . | . . . . . Garrison Access . | . . . . . Terminal Hacks 5 | . 2 . 2 1 Record 1 | . . . 1 . Robot Analysis 2 | . 2 . . . Open Door 1 | . . . . 1 Derelict Proto ID Bank 1 | . . . 1 . Fabricator Hacks . | . . . . . Repair Station Hacks 2 | . 2 . . . Scan Component 1 | . 1 . . . Repair 1 | . 1 . . . Recycling Unit Hacks . | . . . . . Scanalyzer . | . . . . . Garrison Access Hacks . | . . . . . Unauthorized Hacks 9 | . 9 . . . Terminals 7 | . 7 . . . Botnet 3 | . 3 . . . Operators 1 | . 1 . . . Skim 3 | . 3 . . . Fabricators . | . . . . . Repair Stations . | . . . . . Recycling Units 2 | . 2 . . . Tunnel 2 | . 2 . . . Scanalyzers . | . . . . . Garrison Access . | . . . . . Data Cores Recovered . | . . . . . Used . | . . . . . Hacking Detections 6 | . 6 . . . Full Trace Events . | . . . . . Feedback Events . | . . . . . Feedback Blocked . | . . . . . Robot Schematics Acquired . | . . . . . Robots Built . | . . . . . Authchips . | . . . . . Time . | . . . . . Total Robot Build Rating . | . . . . . Part Schematics Acquired . | . . . . . Parts Built . | . . . . . Authchips . | . . . . . Time . | . . . . . Total Part Build Rating . | . . . . . Parts Repaired 1 | . 1 . . . Time 26 | . 26 . . . Parts Recycled . | . . . . . Recycled Matter . | . . . . . Retrieved Matter . | . . . . . Retrieved Components . | . . . . . Parts Scanalyzed . | . . . . . Part Schematics Acquired . | . . . . . Parts Damaged . | . . . . . Bothacking | -11 -10 -10 -10 -9 ------------ Run | Yrd Mat Min Exi Min Used RIF Installer . | . . . . . Robots Hacked 6 | . . . 6 . Non-combat 3 | . . . 3 . Combat 3 | . . . 3 . Robot Hacks Applied 7 | . . . 7 . parse_system 7 | . . . 7 . Relay Couplers Released . | . . . . . Fabnet Peak Effective % . | . . . . . Robots Rewired . | . . . . . Allies Hacked . | . . . . . Hacks Repelled . | . . . . . Allies | -11 -10 -10 -10 -9 -------- Run | Yrd Mat Min Exi Min Total Allies . | . . . . . Largest Group . | . . . . . Highest-Rated Group . | . . . . . Highest-Rated Ally . | . . . . . Total Orders . | . . . . . Ally Attacks . | . . . . . Total Damage . | . . . . . Kills . | . . . . . Allies Corrupted . | . . . . . Allies Melted . | . . . . . Intel | -11 -10 -10 -10 -9 ------- Run | Yrd Mat Min Exi Min Robot Analysis Total 2 | . 2 . . . Derelict Logs Recovered 2 | . . 1 . 1 Drone Launches . | . . . . . Drone Recoveries . | . . . . . Exploration | -11 -10 -10 -10 -9 ------------- Run | Yrd Mat Min Exi Min Turns Passed 3896 | 132 1882 590 741 551 Spaces Moved 1947 | 62 793 345 443 304 Core 3 | 3 . . . . Treads 1944 | 59 793 345 443 304 Legs . | . . . . . Wheels . | . . . . . Hover . | . . . . . Flight . | . . . . . Fastest Speed 50 | 50 160 160 160 160 Average Speed 159 | 154 160 160 160 160 Slowest Speed 160 | 160 160 160 160 160 Overloaded Moves . | . . . . . Propulsion Burnouts . | . . . . . Robots Hopped . | . . . . . Cave-ins Triggered . | . . . . . Exploration Rate (%) 64 | 5 96 68 78 75 Regions Visited 4 Branch Regions 3 Pre-discovered Areas 4 | . 2 . 1 1 Known Exits Taken 1 | . 1 . . . Unknown Exits Taken 3 | 1 . 1 1 . Scrap Searched 2 | . . 2 . . Spaces Dug . | . . . . . Terrain Destroyed 13 | . . . . 13 Melee . | . . . . . Projectile . | . . . . . AOE 13 | . . . . 13 Terrain Rammed . | . . . . . Walls Destroyed . | . . . . . Machines Disabled . | . . . . . Actions | -11 -10 -10 -10 -9 --------- Run | Yrd Mat Min Exi Min Total 2507 | 78 1242 359 471 357 Wait 367 | . 331 . 11 25 Move 1943 | 61 792 344 442 304 Hop . | . . . . . Pick Up 21 | 1 13 . 2 5 Fast Attach 16 | 7 3 . 2 4 Attach 4 | . 1 1 . 2 Detach 1 | . 1 . . . Swap 13 | . 8 1 2 2 Drop 18 | . 8 . 4 6 Fire 106 | 9 81 13 . 3 Melee 14 | . . . 8 6 Ram . | . . . . . Kick . | . . . . . Crush 4 | . 4 . . . Escape Stasis . | . . . . . Rewire . | . . . . . Trap . | . . . . . Miscellaneous . | . . . . . Route ------- -11/Scrapyard -10/Materials (discovered 4 exits: [*Mat x3] / *Min) -10/Mines (discovered 4 exits: [*Mat x2] / *Exi / Sub) -10/Exiles (discovered 2 exits: *Min x2) -9/Mines (discovered 1 exit: [*Mat]) History --------- Turn | Location | Event 9 | -11/Scrapyard | Discovered new exit (range 16) 133 | -11/Scrapyard | Entered Materials 246 | -10/Materials | Discovered new exit (range 12) 305 | -10/Materials | Build established: Mutant 641 | -10/Materials | Discovered new exit (range 15) 798 | -10/Materials | Discovered new exit (range 12) 1311 | -10/Materials | Discovered new exit (range 13) 1570 | -10/Materials | Repaired Lgt. Treads 1730 | -10/Materials | Core integrity fell below 50% 1894 | -10/Materials | Identified exit to Mines 2015 | -10/Materials | Entered Mines 2123 | -10/Mines | Discovered new exit (range 13) 2187 | -10/Mines | Identified exit to Subcaves 2221 | -10/Mines | Discovered new exit (range 5) 2596 | -10/Mines | Deemed a non-threat by the Exiles lab entrance 2599 | -10/Mines | Discovered new exit (range 5) 2605 | -10/Mines | Entered Exiles 2628 | -10/Exiles | Discovered new exit (range 15) 2647 | -10/Exiles | Met 8R-AWN 2688 | -10/Exiles | Met EX-HEX 2810 | -10/Exiles | Met EX-DEC 2870 | -10/Exiles | Visited The Gauntlet 2976 | -10/Exiles | Learned location of Zion (-6) 3001 | -10/Exiles | Met EX-BIN 3041 | -10/Exiles | Aligned with FarCom system 3043 | -10/Exiles | Given EX-Vault access code 3080 | -10/Exiles | Opened EX-Vault 3090 | -10/Exiles | Found Gui. Plasma Cannon 3143 | -10/Exiles | Warned to stay clear of 0b10 Research branches 3152 | -10/Exiles | Exiles lab attacked by MAIN.C 3333 | -10/Exiles | Discovered new exit (range 10) 3346 | -10/Exiles | Left Exiles lab with Gui. Plasma Cannon 3346 | -10/Exiles | Entered Mines 3377 | -9/Mines | Met a Derelict bent on vengeance 3380 | -9/Mines | Lost 3 parts (2n1w) 3419 | -9/Mines | Joined a pair of Derelicts in attacking an 0b10 outpost 3485 | -9/Mines | A weapon hastily lodged in a ceiling crevice suddenly fell to the ground 3663 | -9/Mines | Met a Derelict shopkeep closing up shop 3791 | -9/Mines | Discovered new exit (range 11) 3823 | -9/Mines | Found a hidden stash of uninstalled traps 3878 | -9/Mines | Assembled infested the area 3891 | -9/Mines | Core integrity fell below 20% 3897 | -9/Mines | Destroyed by D-53 Grenadier with Mini Grenade Launcher Last Messages --------------- 03735_ Sneak attack on T-07 Excavator. 03735_ Destroyed Imp. Terrain Scanner. 03735_ Destroyed Mining Laser. 03735_ T-07 Excavator destroyed. 03791_ EXIT=FOUND 03802_ S-10 Pest destroyed. 03823_ A stash of uninstalled traps is collected here! 03831_ Sneak attack on T-07 Excavator. 03831_ T-07 Excavator destroyed. 03834_ Acquired 6 matter. 03878_ ALERT: Infestation in the mines, dispatching Demolisher response squad. 03881_ C-30 ARC bursts open, deploying its payload. 03881_ D-53 Grenadier unfolds itself. 03890_ Ion Engine destroyed. 03892_ The unstable cave ceiling collapses. 03892_ D-53 Grenadier destroyed. 03897_ The unstable cave ceiling collapses. Map ----- +----------------------------------------------------+ | | | ?????????????????????????????????????????????????? | | ?????????????????????????????????????????????????? | | ?????????????????????????????????????????????????? | | ?????????????????????????????????????????????????? | | ???????????########??????????????????????????????? | | ???????????# #??????????????????????????????? | | ???????????# """ #???????##?????????????????????? | | ???????????# """ #??????? ????????????????????? | | ??????????## """ #??????# #????????????????????? | | ?????????## ##?????# #????????????????????? | | ?????????# #?????# #????????????????????? | | ??????????# % #????## #????????????????????? | | ??????????## #???## ##???????????????????? | | ??????????# * #???# #???????????????????? | | ??????????# #???# ????????????????????? | | ??###?????# ##??## ????????????????????? | | ??? ##???## #???# #????????????????????? | | ??? #????# #???# ###??????????????????? | | ???? ????## #####??## ##?#???????????????? | | ???? #?????# #?????## # #???????????????? | | ????# #?##### #?????# #???????????????? | | ????# #?# #?????# ####???????????????? | | #### ### #####?????## ###????????????????? | | #####?????# # ##???????????????? | | ##### ###### #####?# =@ #???????????????? | | ##### #??## !%|=#?## d #???????????????? | | #?## *## #??### ##???????????????? | | ######?# & ## #????# ##????????????????? | | #??????# & &## #????## ###?????????????????? | | #??????# &### ####??#### #???? #????????????? | | #??????# ##?# ####### # #?????##?????? | | #??????# ???#### %= "% *[=%=[![#?????? | | ##??????# ??????# ### ##### < #?????=#?????? | | #???????## #??????# #?# #???? #?????%##????? | | ##???????###???????# #?# #????? #???##*!##???? | | ##????????????????# #?# #?????######???# = #???? | | ##???????????????# ### #?????????????## ##??? | | #???????????????# ## #?????????????# #??? | | #??????????????## # #########????? #??? | | ##?????????????## #????? #??? | | ###??????????????# # ####?## #???? | | ?????????????????# ########## #"=### ##??? | | ?????????????????# ?????????# #"! #X # ###? | | ?????????????????# #????????# #"! # ## | | ?????????????????# #???????# #"! ] !# # | | ?????????????????## #??????# #"! !# # # | | #?????????????????## ###???# #"=### # | | ##??????????????????# ##??# ####?## #? | | #???????????????????# ##?# #????# ###? | +----------------------------------------------------+ Best States ------------- Heat Dissipation 39 Energy Generation 10 Energy Capacity 250 Matter Stores 300 Matter Capacity 300 Sight Range 16 Terrain Scan Density 10 Evasion (%) 40 Recoil Reduction 2 Item Schematics ----------------- None Robot Schematics ------------------ None Fabricated ------------ Nothing Alien Tech Used ----------------- None Achievements -------------- None Challenges ------------ None Game ------ Seed LongswordSurgeCanceller Manual? 0 Play Time 00:29:02 Cumulative 205.9 hours Start 2025.03.05 @ 05:12:59 End 2025.03.05 @ 05:52:29 Sessions 1 Manual Loads 0 Difficulty Rogue Special Mode None Game No. 97 Rogue 58 Adventurer 36 Explorer 3 Win Type - Total 6 Types 2/1/0/1/0/1/0/1/0 Lore% 67 Gallery% 65 Achievement% 64 Wizard Run 0 Options --------- Layout 1 ASCII 0 Keyboard 0 Movement Arrows Keybinds 0 Fullscreen 1 Font 24/Smallcaps Map View 50x35 Zoom Use 0% Tactical HUD 1 Map Filters NONE Filters NONE Steam 1 RUN: e3551968-818a-422d-adc4-7b1b460228fa